Cogmind - Beta 16.1 @@@ ROGUE MODE // 2026.03.07 @ 20:59:53 Player: StaticNoob Result: Destroyed by S-43 Plague with Heavy Machine Gun Performance ------------- Evolutions (7) 3500 Regions Visited (24) 4800 Robots Destroyed (210) 1050 Value Destroyed (8845) 8845 Prototype IDs (56) 1120 Alien Tech Used (1) 200 Bonus (8260) 8260 TOTAL SCORE: 27775 Bonus ------- High Alert Combat Kills 45 Follower Combat Kills 3564 Network Hubs Disabled 200 Met Imprinter 300 Was Imprinted 300 Met Zhirov 300 Met Warlord at Base 500 MAIN.C Attacked Warlord 500 Warlord Defense Kills 2428 Built Enhanced Grunts 300 A7 Reached Mainframe 300 Met R17 at Cetus 500 Friendly Fire -977 Cogmind --------- Core Integrity 0/1300 Matter 277/800 Energy 99/100 System Corruption 16% Temperature Cool (0) Movement Core (50) Location -3/Research Parts ------- > --- POWER (2) -------- (None) > --- PROPULSION (3) --- (None) > --- UTILITY (10) ----- Experimental Matter Compressor Spectral Analyzer Advanced Signal Interpreter Graphene Brace > --- WEAPON (6) ------- (None) > --- INVENTORY (5) ---- Improved Matter Compressor (300) Improved Medium Armor Plating Hacking Suite Long-range Tractor Beam Improved Plasma Cutter Peak State ------------ > --- POWER ------------ Neutrino Core > --- PROPULSION ------- Armored Medium Treads Improved Heavy Siege Treads > --- UTILITY ---------- Advanced Heat Sink Advanced Cooling System Huge Storage Unit Energy Well Spectral Analyzer Advanced Signal Interpreter Tactical Coordination Suite Core Analyzer Graphene Brace > --- WEAPON ----------- BFG-9k Vortex Edition > --- INVENTORY -------- Improved Heavy Treads Improved Matter Compressor Improved Medium Armor Plating Point Defense System Hacking Suite Hacking Suite Advanced System Shield Long-range Tractor Beam Hacking Drone Bay Improved Plasma Cutter [Rating: 159] Favorites ----------- Power Meta Core Engine Subdweller Power Source Power Core Meta Core Reactor Heavy Antimatter Reactor Propulsion Medium Treads Treads Medium Treads Leg Myomer Leg Wheel Armored Wheel Utility Huge Storage Unit Device Improved Heat Sink Storage Huge Storage Unit Processor Advanced Targeting Computer Hackware Improved System Shield Protection Improved Medium Armor Plating Weapon Gatling Laser Energy Gun Gatling Laser Energy Cannon Heavy Phase Cannon Ballistic Gun Heavy Machine Gun Ballistic Cannon Mass Driver Launcher Vortex Catalyst Activator Special Weapon RU-N14's Throwing Claymores v3 Slashing Weapon Makeshift Axe Piercing Weapon CR-A16's Pointy Stick Special Melee Weapon 1B-0RG's Assimilator Build | -11 -10 -10 -8 -7 -7 -7 -7 -6 -6 -6 -6 -6 -6 -5 -5 -5 -5 -4 -4 -4 -4 -4 -3 -3 ------- Run | Yrd Mat Sub Mat Fac Low Low Zio Pro Fac Ext Cet Arc Hub Fac Upp Upp War Pro Fac Upp Upp Zhi Pro Res Slots Evolved 14 | . . . 4 2 . . . . 2 . . . . 2 . . . . 2 . . . . 2 Power 1 | . . . . . . . . . 1 . . . . . . . . . . . . . . . Propulsion 1 | . . . . . . . . . . . . . . . . . . . 1 . . . . . Utility 8 | . . . 2 1 . . . . 1 . . . . 1 . . . . 1 . . . . 2 Weapon 4 | . . . 2 1 . . . . . . . . . 1 . . . . . . . . . . Parts Attached 170 | 6 2 6 25 6 . 1 2 1 8 4 1 8 1 23 2 5 15 16 19 1 . 2 . 16 Power 17 | 1 . 2 3 . . . . . 1 . . 1 . . . 2 1 2 2 . . 1 . 1 Engine 5 | 1 . 2 2 . . . . . . . . . . . . . . . . . . . . . Core 8 | . . . 1 . . . . . 1 . . 1 . . . 2 . 1 2 . . . . . Reactor 4 | . . . . . . . . . . . . . . . . . 1 1 . . . 1 . 1 Propulsion 30 | 2 . 1 7 3 . . . . 1 . . 2 . 1 1 1 . 4 3 . . . . 4 Treads 16 | 2 . . 7 3 . . . . . . . . . . . . . . 1 . . . . 3 Leg 7 | . . . . . . . . . . . . . . . . . . 4 2 . . . . 1 Wheel 7 | . . 1 . . . . . . 1 . . 2 . 1 1 1 . . . . . . . . Hover . | . . . . . . . . . . . . . . . . . . . . . . . . . Flight . | . . . . . . . . . . . . . . . . . . . . . . . . . Utility 69 | 1 2 . 5 2 . . . 1 5 4 1 5 1 8 1 2 8 8 7 1 . 1 . 6 Device 36 | . 1 . 2 2 . . . 1 2 . . 1 . 5 1 2 4 5 6 . . . . 4 Storage 9 | 1 1 . 1 . . . . . . 2 1 . . 1 . . 1 . . . . . . 1 Processor 11 | . . . 2 . . . . . 1 . . 1 1 1 . . 3 1 . . . . . 1 Hackware 1 | . . . . . . . . . . . . 1 . . . . . . . . . . . . Protection 12 | . . . . . . . . . 2 2 . 2 . 1 . . . 2 1 1 . 1 . . Artifact . | . . . . . . . . . . . . . . . . . . . . . . . . . Weapon 54 | 2 . 3 10 1 . 1 2 . 1 . . . . 14 . . 6 2 7 . . . . 5 Energy Gun 20 | . . 1 5 1 . 1 1 . . . . . . 2 . . 1 . 4 . . . . 4 Energy Cannon 6 | . . 1 2 . . . . . . . . . . 2 . . . 1 . . . . . . Ballistic Gun 17 | 2 . 1 1 . . . . . . . . . . 7 . . 2 . 3 . . . . 1 Ballistic Cannon 2 | . . . . . . . . . . . . . . 2 . . . . . . . . . . Launcher 3 | . . . 1 . . . 1 . . . . . . . . . . 1 . . . . . . Special Weapon 3 | . . . . . . . . . . . . . . . . . 3 . . . . . . . Impact Weapon . | . . . . . . . . . . . . . . . . . . . . . . . . . Slashing Weapon 1 | . . . 1 . . . . . . . . . . . . . . . . . . . . . Piercing Weapon 1 | . . . . . . . . . . . . . . 1 . . . . . . . . . . Special Melee Weapon 1 | . . . . . . . . . 1 . . . . . . . . . . . . . . . Unidentified Prototypes 24 | . . . 1 . . . 1 . 2 . . . . 3 . . 5 3 3 1 . 3 . 2 Corrupted Parts 1 | . . . . . . . . . . . . . . . . . . . . . . . . 1 System Corruption 3 | . . . . . . . . . . . . . . . . . . . . . . . . 3 Parts Lost 66 | . . 3 . . . 2 . . 1 3 . 1 1 2 2 1 3 17 3 . . . . 27 Power 8 | . . 1 . . . . . . . . . . . . . 1 . 2 1 . . . . 3 Propulsion 12 | . . 1 . . . . . . 1 . . 1 . 1 1 . . 3 . . . . . 4 Utility 24 | . . . . . . 1 . . . 3 . . . . . . 2 8 1 . . . . 9 Weapon 22 | . . 1 . . . 1 . . . . . . 1 1 1 . 1 4 1 . . . . 11 Highest Loss Streak 12 | . . 2 . . . 2 . . 1 2 . 1 1 1 2 1 3 12 2 . . . . 9 To Critical Strikes 1 | . . . . . . . . . . . . . . 1 . . . . . . . . . . Average Backups 18 | . 2 10 12 19 20 18 19 20 19 21 23 24 25 23 24 24 22 12 14 20 20 20 20 16 Power . | . 1 . . 2 1 1 1 1 . . . 1 1 1 1 1 1 . . . . . 1 . Propulsion 2 | . . 1 1 5 4 4 4 4 3 3 3 1 1 2 1 . . . 3 7 5 5 5 3 Utility 11 | . . 3 5 9 11 11 11 12 12 14 15 17 18 15 16 17 15 6 6 9 10 11 11 9 Weapon 2 | . . 3 2 1 2 1 1 2 2 3 3 3 3 2 4 3 4 4 2 3 2 2 2 1 Tool/Special . | . . . . . . . . . . . . . . . . . . . . . . . . . Unused Backups 58 | . . 3 8 7 1 . . 1 . . . 2 1 8 1 . 13 . 2 . 1 1 . 9 Power 2 | . . . 1 . . . . . . . . . . . . . 1 . . . . . . . Propulsion 17 | . . 2 1 6 1 . . . . . . . . 1 . . . . . . 1 . . 5 Utility 29 | . . 1 3 1 . . . 1 . . . 2 1 6 1 . 8 . . . . 1 . 4 Weapon 9 | . . . 3 . . . . . . . . . . 1 . . 3 . 2 . . . . . Tool/Special 1 | . . . . . . . . . . . . . . . . . 1 . . . . . . . Average Slot Usage (%) 88 | . 88 99 99 98 100 99 99 99 71 69 70 75 75 91 93 93 93 50 85 100 100 99 100 82 Engine 1 | . 14 13 5 . . . . . . . . . . . . . . . . . . . . . Core 6 | . . . 2 6 6 6 6 6 11 11 11 11 11 11 11 10 10 1 8 10 10 7 5 2 Treads 7 | . 28 16 18 17 18 18 18 18 2 . . . . . . . . . 1 . . . . 1 Leg 2 | . . . . . . . . . . . . . . . . . . 8 13 15 15 15 15 11 Wheel 3 | . . 11 . . . . . . 4 5 5 10 11 10 10 11 11 . . . . . . . Device 11 | . 3 14 16 18 18 17 18 17 12 4 . . . 7 6 5 4 3 21 16 15 15 15 22 Storage 6 | . 14 14 8 6 6 6 6 6 5 5 6 5 5 5 5 5 5 4 4 5 5 5 5 4 Processor 14 | . . . 10 12 12 12 12 12 16 17 17 22 23 25 22 22 21 11 10 10 10 10 10 10 Protection 4 | . . . . . . . . . 3 11 16 11 10 3 4 5 5 5 . 8 10 9 10 3 Energy Gun 12 | . . 11 18 29 30 31 30 31 . . . . . 2 . 4 . . 6 15 15 15 15 7 Energy Cannon 1 | . . . 8 . . . . . . . . . . 5 . . . 3 4 . . . . . Ballistic Gun 5 | . 28 16 5 . . . . . . . . . . 8 26 22 21 1 7 10 10 10 10 8 Slashing Weapon 2 | . . . 2 6 6 6 6 6 5 5 5 5 4 . . . . . . . . . . . Piercing Weapon 1 | . . . . . . . . . . . . . . 4 5 5 5 . 4 5 5 5 5 2 Special Melee Weapon 1 | . . . . . . . . . 4 5 5 5 5 . . . . . . . . . . . Peak Build Rating 159 | 6 7 19 66 74 72 71 74 78 130 123 124 126 127 129 103 101 118 152 137 139 139 141 141 159 Average Rating 92 | 4 6 14 41 72 71 70 72 73 121 122 122 124 124 99 99 98 109 91 109 138 138 139 141 127 On Entrance 92 | . 6 7 18 66 71 71 71 73 74 121 123 124 125 121 98 99 99 117 133 137 139 139 141 141 Avg Prop Armor Cover (%) 12 | . . 14 9 7 . . . . 7 . . . . . . . . . 7 . . . . . Naked Turns . | . . . . . . . . . . . . . . . . . . . . . . . . . Heaviest Build 191 | 10 26 38 107 112 112 112 112 112 159 163 160 171 169 168 150 149 158 191 152 150 150 154 154 158 Greatest Support 102 | 40 40 40 84 84 76 76 76 76 28 28 28 28 24 24 28 26 26 50 78 78 81 81 81 102 Greatest Overweight (x) 39 | 3 . 2 2 1 1 1 1 1 5 5 5 7 7 6 9 5 6 39 2 1 1 1 1 3 Average Overweight (x) 2 | . . 1 . 1 1 1 1 1 5 5 5 6 6 5 5 5 5 3 1 1 1 1 1 . Largest Inventory Capacity 25 | 8 15 15 25 25 25 25 25 25 25 25 25 25 25 25 25 25 25 25 25 25 25 25 25 25 Average Capacity 23 | 7 10 15 18 25 25 25 25 25 25 25 25 25 25 25 25 25 25 24 24 25 25 25 25 23 Most Carried 25 | 1 5 15 22 25 25 25 25 25 24 23 25 25 25 25 25 25 25 24 25 25 25 25 25 25 Average Carried 21 | . 2 12 16 24 25 23 24 25 19 21 23 24 24 24 24 24 24 16 18 25 25 24 25 21 Final Capacity 25 | 8 15 15 25 25 25 25 25 25 25 25 25 25 25 25 25 25 25 25 25 25 25 25 25 5 Final Carried 25 | 1 5 15 22 25 25 23 25 25 22 23 25 25 25 25 24 25 24 12 25 25 25 25 25 5 Class Distribution -------------------- 24% | Assassin 20% | Executioner 14% | Mutant 14% | Commander-Mutant 11% | Messiah-Executioner 4% | Gunner 3% | Scavenger-Gunner Dominant Class ---------------- Mutant | -10/Materials Mutant | -10/Subcaves Scavenger-Gunner | -8/Materials Assassin | -7/Factory Assassin | -7/Lower Caves Executioner | -7/Lower Caves Executioner | -7/Zion Executioner | -6/Proximity Caves Assassin | -6/Factory Commander-Mutant | -6/Extension Commander-Mutant | -6/Cetus Commander-Mutant | -6/Archives Commander-Mutant | -6/Hub_04(d) Executioner | -5/Factory Assassin | -5/Upper Caves Assassin | -5/Upper Caves Assassin | -5/Warlord Mutant | -4/Proximity Caves Messiah-Executioner | -4/Factory Messiah-Executioner | -4/Upper Caves Messiah-Executioner | -4/Upper Caves Messiah-Executioner | -4/Zhirov Messiah-Executioner | -3/Proximity Caves Messiah-Assassin | -3/Research Resources | -11 -10 -10 -8 -7 -7 -7 -7 -6 -6 -6 -6 -6 -6 -5 -5 -5 -5 -4 -4 -4 -4 -4 -3 -3 ----------- Run | Yrd Mat Sub Mat Fac Low Low Zio Pro Fac Ext Cet Arc Hub Fac Upp Upp War Pro Fac Upp Upp Zhi Pro Res Matter Collected 10530 | 149 . 232 759 95 275 208 25 40 1329 1495 606 495 277 1185 699 321 365 854 602 55 19 50 43 352 Remotely 187 | . . . . . . . . . . . . . . . 187 . . . . . . . . . Salvage Created 8903 | . . 300 1337 513 204 557 . 106 84 246 . 263 56 1019 411 245 866 1103 317 121 82 299 176 598 Parts 386 | . . 18 74 28 6 21 . 3 3 9 . 22 2 42 22 12 35 22 18 4 4 3 8 30 Haulers Intercepted 8 | . . . 3 2 . . . . . . . . . 2 . . . 1 . . . . . . Recyclers Shooed 7 | . . . . . . . . . . 2 . . . 3 . . . . 2 . . . . . Parts Field Recycled . | . . . . . . . . . . . . . . . . . . . . . . . . . Retrieved Matter . | . . . . . . . . . . . . . . . . . . . . . . . . . Parts Self-Destructed 119 | . . 11 . . 7 29 . 4 . . . . . . 22 4 . 20 . 8 3 3 8 . Prevented 7 | . . . . . . . . 2 . . . . . . . . . . . 5 . . . . Parts Restored . | . . . . . . . . . . . . . . . . . . . . . . . . . Kills | -11 -10 -10 -8 -7 -7 -7 -7 -6 -6 -6 -6 -6 -6 -5 -5 -5 -5 -4 -4 -4 -4 -4 -3 -3 ------- Run | Yrd Mat Sub Mat Fac Low Low Zio Pro Fac Ext Cet Arc Hub Fac Upp Upp War Pro Fac Upp Upp Zhi Pro Res Combat Hostiles Destroyed 164 | . . 4 25 8 5 15 . 2 1 4 . 1 1 6 12 10 23 24 8 1 1 . 5 8 Melee 7 | . . . . . . . . . 1 4 . 1 1 . . . . . . . . . . . Guns 76 | . . 4 9 8 3 12 . 2 . . . . . 1 12 . 3 3 5 1 1 . 5 7 Cannons 22 | . . . 11 . . . . . . . . . . 4 . . . 6 . . . . . 1 AOE 54 | . . . 4 . 1 . . . . . . . . 1 . 10 20 15 3 . . . . . Classes Destroyed 19 | . . 1 8 3 . 2 . . 1 . . . . . . . 3 . . 1 . . . . Worker 7 | . . . . . . . . . 1 . . . . 5 . . . . . . . . . 1 Builder 5 | . . . 2 . . . . . . . . . . . . . . . 2 . . . . 1 Hauler 8 | . . . 3 2 . . . . . . . . . 2 . . . 1 . . . . . . Recycler 4 | . . . 1 . . . . . . . . . . 3 . . . . . . . . . . Minesweeper 1 | . . . . . . . . . . . . . . . . . . . . 1 . . . . Mechanic 2 | . . . . 1 . . . . . . . . . . . . . 1 . . . . . . Operator 8 | . . . 2 1 . . . . . . . 5 . . . . . . . . . . . . Watcher 6 | . . . 3 1 . . . . . . . . . 1 . . . . . . . . . 1 Swarmer 50 | . . . 8 . 1 7 . . . . . . . . 8 5 9 2 5 . . . 5 . Grunt 60 | . . . 12 1 3 4 . 2 1 1 . . . 1 3 5 6 16 . 1 . . . 4 Brawler 6 | . . . . . . 2 . . . . . . . . . . 3 1 . . . . . . Duelist 4 | . . . . . . 1 . . . . . . . . . . . 3 . . . . . . Protector 2 | . . . . . . . . . . . . . . . . . 2 . . . . . . . Sentry 20 | . . . 5 3 1 1 . . . 3 . 1 1 . . . . 2 1 . 1 . . 1 Specialist 1 | . . . . . . . . . . . . . . . . . 1 . . . . . . . Hunter 4 | . . . . 1 . . . . . . . . . . 1 . 1 . . . . . . 1 Programmer 12 | . . . . 3 . . . . . . . . . 5 . . . . 2 . . . . 2 Executioner 2 | . . . . . . . . . . . . . . . . . 2 . . . . . . . Subdweller 4 | . . 4 . . . . . . . . . . . . . . . . . . . . . . Thug 3 | . . . . . . . . . . . . . . . . . 3 . . . . . . . Savage 1 | . . . . . . . . . . . . . . . . . 1 . . . . . . . Best Kill Streak 13 | . . 1 7 2 2 8 . 2 1 1 . 2 1 4 4 5 13 6 4 1 1 . 4 3 Combat Bots Only 13 | . . 1 4 2 2 8 . 2 1 1 . 1 1 2 4 5 13 5 3 1 1 . 4 3 Max Kills in Single Turn 5 | . . 1 4 2 1 2 . 1 1 1 . 1 1 1 2 3 5 4 3 1 1 . 2 2 Gunslinging 1 | . . . . . . 1 . . . . . . . . 1 . . . . . . . 1 1 Exploded 5 | . . . 4 . 1 . . . . . . . . 1 . 3 5 4 3 . . . . . Melee 1 | . . . . . . . . . 1 1 . 1 1 . . . . . . . . . . . Uniques/NPCs Destroyed . | . . . . . . . . . . . . . . . . . . . . . . . . . Combat | -11 -10 -10 -8 -7 -7 -7 -7 -6 -6 -6 -6 -6 -6 -5 -5 -5 -5 -4 -4 -4 -4 -4 -3 -3 -------- Run | Yrd Mat Sub Mat Fac Low Low Zio Pro Fac Ext Cet Arc Hub Fac Upp Upp War Pro Fac Upp Upp Zhi Pro Res Hostile Shots Fired 1245 | . . 28 56 55 10 15 . . 27 139 15 4 51 28 76 19 13 191 37 4 2 . 10 465 Missed 369 | . . 4 15 18 3 4 . . 3 53 5 2 13 8 18 2 5 54 14 1 2 . 1 144 Hits 876 | . . 24 41 37 7 11 . . 24 86 10 2 38 20 58 17 8 137 23 3 . . 9 321 Melee 22 | . . . . . . . . . 1 . . . . . . . . 21 . . . . . . Projectile 854 | . . 24 41 37 7 11 . . 23 86 10 2 38 20 58 17 8 116 23 3 . . 9 321 AOE 3 | . . . . . . . . . . . . . . . . . 3 . . . . . . . Critical Strikes 33 | . . . . 1 . 1 . . 5 . 1 . . 3 . 2 1 12 . . . . . 7 Actively Blocked 7 | . . . . . . . . . . . . . . . . . . . . . . . . 7 Damage Taken 16312 | . . 583 607 560 112 201 . 86 614 852 342 49 706 494 967 320 460 2874 450 61 . . 204 5770 Core 3085 | . . 81 37 79 . . . 86 142 81 51 . 161 47 57 40 37 747 128 . . . . 1311 Absorbed by Shields 697 | . . . . . . . . . . 142 37 . . . . . 87 431 . . . . . . Redirected to Shielding 138 | . . . . . . . . . . . . . . . . . . . . 39 . . 69 30 Ignored by Resistances 160 | . . . . . . . . . . . . . . . . . . 160 . . . . . . Regen/Repaired (Parts) 1657 | . . . . 23 . . . . 140 258 138 23 124 54 . . 341 . 556 . . . . . Core Remaining (%) 68 | 100 . 67 93 . . . . 76 . . . . 48 . . . . 7 . . . . 88 . Volleys Fired 388 | . . 38 54 15 9 12 . 2 . . . . . 22 25 8 18 73 18 5 1 . 32 56 Largest 5 | . . 2 4 5 5 5 . 5 . . . . . 3 5 4 4 5 5 5 5 . 5 5 Hottest 400 | . . 90 320 400 400 400 . 400 . . . . . 172 155 120 120 300 283 287 287 . 287 300 Shots Fired 1024 | . . 70 213 68 26 60 . 10 . . . . . 58 115 13 36 103 47 25 5 . 56 119 Gun 829 | . . 70 144 68 22 60 . 10 . . . . . 18 115 8 24 44 43 25 5 . 56 117 Cannon 162 | . . . 68 . . . . . . . . . . 40 . . . 49 3 . . . . 2 Launcher 23 | . . . 1 . 4 . . . . . . . . . . 5 2 10 1 . . . . . Special 10 | . . . . . . . . . . . . . . . . . 10 . . . . . . . Kinetic 432 | . . 50 47 . . . . . . . . . . 36 115 8 24 44 22 10 2 . 10 64 Thermal 477 | . . 20 165 68 22 60 . 10 . . . . . 22 . . . 40 14 10 2 . 14 30 Explosive 22 | . . . . . . . . . . . . . . . . 5 12 4 1 . . . . . Electromagnetic 5 | . . . 1 . 4 . . . . . . . . . . . . . . . . . . . Entropic 17 | . . . . . . . . . . . . . . . . . . 15 . . . . . 2 Phasic 71 | . . . . . . . . . . . . . . . . . . . 10 5 1 . 32 23 Robot Hit Streak 31 | . . 21 21 9 15 31 . 5 . . . . . 7 8 5 5 20 10 4 9 . 10 16 Robot Miss Streak 7 | . . 2 4 3 2 6 . 3 . . . . . 4 7 3 5 3 2 2 . . 4 3 Penetration Max 1 | . . . . . . . . . . . . . . 1 1 . 1 . . . . . . 1 Secondary Targets 16 | . . . . . . 2 . 1 . . . . . . 6 . . 2 . . . . 3 2 Max Gunslinging Chain 2 | . . . . . . 1 . 1 . . . . . . 2 . . 1 . . . . 2 1 Shots Hit Robots 642 | . . 48 132 39 18 41 . 8 4 17 1 10 8 38 42 9 15 62 31 15 5 5 15 79 Core Hits 428 | . . 16 58 36 14 36 . 6 2 6 . 4 2 19 20 30 74 43 17 5 2 5 6 27 Critical Kills 5 | . . 1 1 . . . . . . . . . . 2 1 . . . . . . . . . Critical Parts Destroyed 7 | . . . 1 . . . . . . . . . . 3 1 . . . 1 . . . . 1 Critical Strikes 24 | . . 1 2 . . . . . 1 2 . 1 1 7 2 . 1 2 1 . 1 . . 2 Meltdown 1 | . . . 1 . . . . . . . . . . . . . . . . . . . . . Destroy 11 | . . 1 1 . . . . . . . . . . 5 2 . . . 1 . . . . 1 Sever 6 | . . . . . . . . . 1 2 . 1 1 . . . 1 . . . . . . . Impale 2 | . . . . . . . . . . . . . . 2 . . . . . . . . . . Sunder 3 | . . . . . . . . . . . . . . . . . . 2 . . . . . 1 Intensify 1 | . . . . . . . . . . . . . . . . . . . . . 1 . . . Melee Attacks 115 | . . . . . 2 . . . 7 23 10 18 19 21 . . . 2 4 . . 5 . 4 Impact . | . . . . . . . . . . . . . . . . . . . . . . . . . Slashing 79 | . . . . . 2 . . . 7 23 10 18 19 . . . . . . . . . . . Piercing 36 | . . . . . . . . . . . . . . 21 . . . 2 4 . . 5 . 4 Sneak Attacks 26 | . . . . . . . . . 1 2 . 7 1 11 . . . . 4 . . . . . Combat Hostiles 1 | . . . . . . . . . . 1 . . . . . . . . . . . . . . Follow-up Attacks . | . . . . . . . . . . . . . . . . . . . . . . . . . Damage Inflicted 30725 | . . 665 2521 876 515 993 . 216 202 707 32 762 330 1598 966 952 4847 9146 1324 446 161 339 460 2667 Guns 10389 | . . 665 1326 849 463 993 . 216 . . . . . 78 966 83 346 641 644 446 161 . 460 2052 Cannons 6914 | . . . 1117 . . . . . . . . . . 706 . . . 4584 69 . . . . 438 Explosions 9584 | . . . 73 10 52 . . . . . . . . 75 . 869 4259 3898 348 . . . . . Melee 3375 | . . . . . . . . . 202 685 32 762 330 739 . . . 23 263 . . 339 . . Ramming 221 | . . . 5 17 . . . . . 22 . . . . . . . . . . . . . 177 Kinetic 4901 | . . 430 243 . . . . . . . . . . 285 966 83 346 641 238 195 55 . 140 1279 Thermal 7248 | . . 235 2200 849 463 993 . 216 . . . . . 499 . . . 554 397 99 68 . 168 507 Explosive 5736 | . . . . 10 . . . . . . . . . 75 . 869 4259 287 236 . . . . . Electromagnetic 125 | . . . 73 . 52 . . . . . . . . . . . . . . . . . . . Impact . | . . . . . . . . . . . . . . . . . . . . . . . . . Slashing 2253 | . . . . . . . . . 202 685 32 762 330 . . . 242 . . . . . . . Piercing 1364 | . . . . . . . . . . . . . . 739 . . . 23 263 . . 339 . . Entropic 8079 | . . . . . . . . . . . . . . . . . . 7641 . . . . . 438 Phasic 798 | . . . . . . . . . . . . . . . . . . . 190 152 38 . 152 266 Highest Corruption 16 | . . . 4 4 4 4 4 . 2 2 3 3 . 5 5 5 6 10 . . . . . 16 Average Corruption 4 | . . . 3 3 4 4 4 . 2 2 2 2 . 4 5 5 5 9 . . . . . 8 Corruption Purged 4 | . . . . . . . . . . . . 3 . 1 . . . . . . . . . . Corruption Blocked . | . . . . . . . . . . . . . . . . . . . . . . . . . Effects 250 | . . . 4 19 29 19 5 . 12 19 8 . . 16 18 13 4 70 . . . . . 14 Message Errors 52 | . . . . 6 4 3 2 . 2 7 . . . 5 3 5 1 12 . . . . . 2 Matter Fused 64 | . . . 1 6 9 3 2 . 2 3 5 . . 4 2 4 . 18 . . . . . 5 Heat Flow Errors 34 | . . . . 2 4 2 . . 2 3 1 . . 4 4 2 . 9 . . . . . 1 Energy Discharges 25 | . . . . . 2 1 1 . . 1 2 . . . 2 . 1 15 . . . . . . Parts Rejected 4 | . . . 1 . . . . . . . . . . . 1 . . . . . . . . 2 Parts Fused 3 | . . . 1 . . . . . . 1 . . . . . . . . . . . . . 1 Data Loss (minor) 32 | . . . . 2 8 3 . . 2 . . . . 3 2 1 2 8 . . . . . 1 Data Loss (major) 16 | . . . . . 1 3 . . 4 3 . . . . 1 . . 4 . . . . . . Misfires 6 | . . . 1 . 1 1 . . . . . . . . 2 . . 1 . . . . . . Alerts 7 | . . . . 2 . 2 . . . 1 . . . . . . . 2 . . . . . . Misdirections 2 | . . . . . . . . . . . . . . . . . . . . . . . . 2 Weapon Failures 5 | . . . . 1 . 1 . . . . . . . . 1 1 . 1 . . . . . . Overload Shots . | . . . . . . . . . . . . . . . . . . . . . . . . . Overflow Damage 2598 | . . . 34 . . . . . 44 31 . 168 . 127 . 11 31 2073 79 . . . . . Projectiles 1919 | . . . 34 . . . . . . . . . . 37 . . . 1837 11 . . . . . Explosions 288 | . . . . . . . . . . . . . . 10 . 11 31 236 . . . . . . Melee 391 | . . . . . . . . . 44 31 . 168 . 80 . . . . 68 . . . . . Knockbacks 5 | . . . . 1 . . . . . . . . . 1 . . . . . . . . . 3 Impact 4 | . . . . 1 . . . . . . . . . . . . . . . . . . . 3 Kinetic 1 | . . . . . . . . . . . . . . 1 . . . . . . . . . . Secondary . | . . . . . . . . . . . . . . . . . . . . . . . . . Self-Inflicted Damage 509 | . . . 30 139 7 . . . . 11 . . . 91 . . 89 97 44 . . . . 1 Shots 14 | . . . 1 2 1 . . . . . . . . 1 . . 3 4 2 . . . . . Rammed 35 | . . . . 2 . . . . . 2 . . . . . . . . . . . . . 31 Targets Rammed 37 | . . . 1 3 . . . . . 2 . . . . . . . . . . . . . 31 Kicked . | . . . . . . . . . . . . . . . . . . . . . . . . . Crushed 2 | . . . 1 1 . . . . . . . . . . . . . . . . . . . . Highest Temperature 594 | . . . 323 443 232 406 . 299 226 203 115 . . 240 391 218 72 594 178 36 24 . . 84 Average Temperature 115 | . . . 92 141 106 138 . 157 98 81 58 . . 83 139 109 26 133 83 18 16 . . 47 Received Heat Transfer 2500 | . . 72 234 63 27 63 . 12 327 271 72 9 75 63 135 157 4 595 9 33 . . . 279 Effects 23 | . . . 5 3 . 1 . . . . . . . . 6 . . 8 . . . . . . Shutdowns 5 | . . . . . . 1 . . . . . . . . 1 . . 3 . . . . . . Energy Bleed 3 | . . . 2 . . . . . . . . . . . . . . 1 . . . . . . Interference 10 | . . . 3 2 . . . . . . . . . . 5 . . . . . . . . . Short Circuit 2 | . . . . 1 . . . . . . . . . . . . . 1 . . . . . . Damage (minor) 2 | . . . . . . . . . . . . . . . . . . 2 . . . . . . Damage (major) 1 | . . . . . . . . . . . . . . . . . . 1 . . . . . . Siege Activations . | . . . . . . . . . . . . . . . . . . . . . . . . . Martial Activations . | . . . . . . . . . . . . . . . . . . . . . . . . . Shielding Activations . | . . . . . . . . . . . . . . . . . . . . . . . . . Robots Disrupted . | . . . . . . . . . . . . . . . . . . . . . . . . . Combat Hostiles . | . . . . . . . . . . . . . . . . . . . . . . . . . Robots Corrupted . | . . . . . . . . . . . . . . . . . . . . . . . . . Combat Hostiles . | . . . . . . . . . . . . . . . . . . . . . . . . . Parts Fried 1 | . . . . . 1 . . . . . . . . . . . . . . . . . . . Impact Corruptions . | . . . . . . . . . . . . . . . . . . . . . . . . . Robots Melted 5 | . . . 1 . 1 3 . . . . . . . . . . . . . . . . . . Combat Hostiles 5 | . . . 1 . 1 3 . . . . . . . . . . . . . . . . . . Parts Melted 39 | . . 1 12 9 4 5 . . . 1 . 1 . 3 . . . . 2 . . . . 1 Heat Transferred 12371 | . . 300 3965 1850 1050 2250 . 475 . . . . . 481 . . . 592 446 111 74 . 185 592 Parts Sabotaged . | . . . . . . . . . . . . . . . . . . . . . . . . . Parts Stolen . | . . . . . . . . . . . . . . . . . . . . . . . . . Parts Stripped . | . . . . . . . . . . . . . . . . . . . . . . . . . Power Chain Reactions 1 | . . . 1 . . . . . . . . . . . . . . . . . . . . . Alert | -11 -10 -10 -8 -7 -7 -7 -7 -6 -6 -6 -6 -6 -6 -5 -5 -5 -5 -4 -4 -4 -4 -4 -3 -3 ------- Run | Yrd Mat Sub Mat Fac Low Low Zio Pro Fac Ext Cet Arc Hub Fac Upp Upp War Pro Fac Upp Upp Zhi Pro Res Maximum Alert Level 3 | . . . 1 . . . . . 1 3 2 1 2 1 . . . . 2 . . . . . Low Security (%) 77 | 100 100 . 71 100 . . . . 80 44 . 87 88 88 . . . . 54 . . . . 100 Level 1 13 | . . . 28 . . . . . 19 13 . 12 1 11 . . . . 44 . . . . . Level 2 5 | . . . . . . . . . . 13 100 . 9 . . . . . . . . . . . Level 3 3 | . . . . . . . . . . 28 . . . . . . . . . . . . . . Level 4 . | . . . . . . . . . . . . . . . . . . . . . . . . . Level 5 . | . . . . . . . . . . . . . . . . . . . . . . . . . High Security . | . . . . . . . . . . . . . . . . . . . . . . . . . Max Security . | . . . . . . . . . . . . . . . . . . . . . . . . . Peak Influence 910 | . . . 298 124 . . . . 359 910 571 269 589 221 . . . . 408 . . . . 70 Initial 480 | . . . . 109 . . . . . 167 480 179 1 191 . . . . 27 . . . . . Average 140 | . . . 159 37 . . . . 80 415 491 54 87 149 . . . . 190 . . . . 12 Influence Increases 8651 | . . . 790 371 110 376 . 126 740 1427 310 247 830 485 280 220 614 554 685 25 20 15 140 286 Destroy 0b10 Robot/C 4900 | . . . 500 160 100 340 . 80 380 640 140 80 220 200 240 200 480 500 340 20 20 . 100 160 Destroy 0b10 Robot/NC 330 | . . . 55 20 . . . . 30 15 10 25 40 65 . . 10 15 10 5 . 15 . 15 Destroy Leader 644 | . . . 112 76 10 20 . 10 82 46 . . 46 60 40 20 . 20 70 . . . 10 22 Allied During Kill 1665 | . . . . . . 16 . 36 169 690 150 105 298 2 . . 124 19 56 . . . . . Successful Hack 104 | . . . 27 47 . . . . . 28 . . . . . . . . 2 . . . . . Disable Machine 330 | . . . 30 30 . . . . 15 . . 30 90 30 . . . . 75 . . . . 30 Destroy Structure 543 | . . . 21 38 . . . . 49 8 10 7 136 98 . . . . 132 . . . . 44 Lose Combat Pursuer 135 | . . . 45 . . . . . 15 . . . . 30 . . . . . . . . 30 15 Influence Decreases 8651 | . . . 549 560 162 324 52 124 400 911 720 691 442 727 398 162 220 994 588 166 20 15 140 286 Entered New Map 1939 | . . . . 132 20 . 52 . 2 175 378 269 3 201 56 7 90 484 17 53 . . . . Time Decay 5296 | . . . 549 428 142 274 . 124 306 546 222 332 109 486 342 145 40 395 362 113 20 15 140 206 Lost Part 294 | . . . . . . 10 . . . 30 . 10 10 20 . 10 30 75 19 . . . . 80 Lost Ally 972 | . . . . . . 40 . . 92 160 120 80 320 20 . . 60 40 40 . . . . . Purge Threat 150 | . . . . . . . . . . . . . . . . . . . 150 . . . . . Squads Dispatched 28 | . . . 2 4 . 1 . . 6 3 . . 3 4 . . . 1 2 . . . . 2 Investigation 3 | . . . . . . . . . 1 1 . . 1 . . . . . . . . . . . Extermination 10 | . . . . 3 . . . . 2 . . . . 3 . . . . 1 . . . . 1 Reinforcement 10 | . . . 2 1 . . . . 1 1 . . 2 1 . . . . 1 . . . . 1 Assault 3 | . . . . . . 1 . . . 1 . . . . . . . 1 . . . . . . Garrison 2 | . . . . . . . . . 2 . . . . . . . . . . . . . . . Intercept . | . . . . . . . . . . . . . . . . . . . . . . . . . Searches Triggered . | . . . . . . . . . . . . . . . . . . . . . . . . . Construction Impeded 1 | . . . . . . . . . . . . . 1 . . . . . . . . . . . Haulers Reinforced 1 | . . . . . . . . . . . . . . 1 . . . . . . . . . . Active Scanning Responses . | . . . . . . . . . . . . . . . . . . . . . . . . . Cargo Convoy Interrupts . | . . . . . . . . . . . . . . . . . . . . . . . . . Stealth | -11 -10 -10 -8 -7 -7 -7 -7 -6 -6 -6 -6 -6 -6 -5 -5 -5 -5 -4 -4 -4 -4 -4 -3 -3 --------- Run | Yrd Mat Sub Mat Fac Low Low Zio Pro Fac Ext Cet Arc Hub Fac Upp Upp War Pro Fac Upp Upp Zhi Pro Res Distress Signals 17 | . . . 4 1 . . . . 2 2 2 . 2 . . . . . . . . . . 4 Communications Jammed 2 | . . . . . . . . . . . . . . 2 . . . . . . . . . . Distress Signals 2 | . . . . . . . . . . . . . . 2 . . . . . . . . . . Times Spotted 318 | . . 5 36 14 5 17 . 4 24 28 10 5 16 11 12 10 37 29 17 1 1 . 7 29 Peak Tracking Total 17 | . . 1 6 2 1 9 . 4 5 4 5 2 8 2 4 5 12 7 5 1 1 . 5 17 Tactical Retreats 9 | . . . 3 . . . . . 1 . . . . 2 . . . . . . . . 2 1 Traps | -11 -10 -10 -8 -7 -7 -7 -7 -6 -6 -6 -6 -6 -6 -5 -5 -5 -5 -4 -4 -4 -4 -4 -3 -3 ------- Run | Yrd Mat Sub Mat Fac Low Low Zio Pro Fac Ext Cet Arc Hub Fac Upp Upp War Pro Fac Upp Upp Zhi Pro Res Traps Triggered 4 | . . 1 2 . . . . . . 1 . . . . . . . . . . . . . . Indirectly . | . . . . . . . . . . . . . . . . . . . . . . . . . Trap Hack Attempts . | . . . . . . . . . . . . . . . . . . . . . . . . . Triggered . | . . . . . . . . . . . . . . . . . . . . . . . . . Disarmed . | . . . . . . . . . . . . . . . . . . . . . . . . . Reprogrammed . | . . . . . . . . . . . . . . . . . . . . . . . . . Reused 1 | . . . . . . . . . . . . . . . . . . . . . . . 1 . Traps Extracted . | . . . . . . . . . . . . . . . . . . . . . . . . . Installed 2 | . . . . . . . . . . . . . . . . . . . . . . . 2 . Triggered 1 | . . . . . . . . . . . . . . . . . . . . . . . 1 . Machines | -11 -10 -10 -8 -7 -7 -7 -7 -6 -6 -6 -6 -6 -6 -5 -5 -5 -5 -4 -4 -4 -4 -4 -3 -3 ---------- Run | Yrd Mat Sub Mat Fac Low Low Zio Pro Fac Ext Cet Arc Hub Fac Upp Upp War Pro Fac Upp Upp Zhi Pro Res Machines Disabled 26 | . . 1 2 2 . . . . 1 . . 2 6 2 . . 2 1 5 . . . . 2 Max in Single Turn 5 | . . 1 1 1 . . . . 1 . . . . 1 . . 1 1 5 . . . . 1 Garrison Access 3 | . . . . 1 . . . . . . . . . 1 . . . . . . . . . 1 Network Hub 1 | . . . . . . . . . . . . . 1 . . . . . . . . . . . Machines Repaired . | . . . . . . . . . . . . . . . . . . . . . . . . . Machines Dismantled 1 | . . . . . . . . . . . . . . . . . 1 . . . . . . . Machines Sabotaged . | . . . . . . . . . . . . . . . . . . . . . . . . . Overloaded Fab Kills . | . . . . . . . . . . . . . . . . . . . . . . . . . Hacking | -11 -10 -10 -8 -7 -7 -7 -7 -6 -6 -6 -6 -6 -6 -5 -5 -5 -5 -4 -4 -4 -4 -4 -3 -3 --------- Run | Yrd Mat Sub Mat Fac Low Low Zio Pro Fac Ext Cet Arc Hub Fac Upp Upp War Pro Fac Upp Upp Zhi Pro Res Machines Accessed 53 | . 1 1 9 9 1 . . . 5 9 . 1 . 4 . . 5 . 1 1 . 5 . 1 Terminals 25 | . . . 8 7 1 . . . . 9 . . . . . . . . . . . . . . Fabricators 1 | . . . . . . . . . 1 . . . . . . . . . . . . . . . Repair Stations 3 | . . . . 1 . . . . . . . . . 1 . . . . 1 . . . . . Recycling Units 5 | . 1 . 1 . . . . . 1 . . . . 2 . . . . . . . . . . Scanalyzers 1 | . . . . . . . . . 1 . . . . . . . . . . . . . . . Garrison Access 5 | . . . . 1 . . . . 2 . . . . 1 . . . . . . . . . 1 Total Hacks 129 | . 1 1 27 18 1 . . . 15 19 . 8 . 8 . . 7 . 4 1 . 18 . 1 Successful 79 | . 1 1 11 9 1 . . . 7 7 . 8 . 3 . . 7 . 4 1 . 18 . 1 Failed 50 | . . . 16 9 . . . . 8 12 . . . 5 . . . . . . . . . . Catastrophic 7 | . . . 2 2 . . . . 2 1 . . . . . . . . . . . . . . Database Lockouts . | . . . . . . . . . . . . . . . . . . . . . . . . . Manual 94 | . . . 21 13 . . . . 13 11 1 . 21 5 . . . . 7 . . . . 2 Terminals 60 | . . . 26 14 1 . . . . 19 . . . . . . . . . . . . . . Fabricators 3 | . . . . . . . . . 3 . . . . . . . . . . . . . . . Repair Stations 8 | . . . . 2 . . . . . . . . . 2 . . . . 4 . . . . . Recycling Units 8 | . 1 . 1 . . . . . 2 . . . . 4 . . . . . . . . . . Scanalyzers 6 | . . . . . . . . . 6 . . . . . . . . . . . . . . . Garrison Access 9 | . . . . 2 . . . . 4 . . . . 2 . . . . . . . . . 1 Terminal Hacks 47 | . . 1 4 . 1 . . . . 7 . 8 . . . . 7 . . 1 . 18 . . Record 21 | . . . . . 1 . . . . . . 8 . . . . 6 . . . . 6 . . Part Schematic 4 | . . . . . . . . . . . . . . . . . . . . . . 4 . . Robot Analysis 5 | . . . 1 . . . . . . . . . . . . . . . . . . 4 . . Prototype ID Bank 5 | . . . 1 . . . . . . . . . . . . . . . . . . 4 . . Open Door 9 | . . . . . . . . . . 7 . . . . . . 1 . . 1 . . . . Locate Traps 2 | . . . 2 . . . . . . . . . . . . . . . . . . . . . Proto ID Catalog 1 | . . 1 . . . . . . . . . . . . . . . . . . . . . . Fabricator Hacks 1 | . . . . . . . . . 1 . . . . . . . . . . . . . . . Network Status 1 | . . . . . . . . . 1 . . . . . . . . . . . . . . . Repair Station Hacks 6 | . . . . 2 . . . . . . . . . . . . . . 4 . . . . . Scan Component 3 | . . . . 1 . . . . . . . . . . . . . . 2 . . . . . Repair 3 | . . . . 1 . . . . . . . . . . . . . . 2 . . . . . Recycling Unit Hacks 5 | . 1 . 1 . . . . . 1 . . . . 2 . . . . . . . . . . Retrieve Components 5 | . 1 . 1 . . . . . 1 . . . . 2 . . . . . . . . . . Scanalyzer 4 | . . . . . . . . . 4 . . . . . . . . . . . . . . . Insert Component 1 | . . . . . . . . . 1 . . . . . . . . . . . . . . . Retrieve Study 3 | . . . . . . . . . 3 . . . . . . . . . . . . . . . Garrison Access Hacks 3 | . . . . 1 . . . . . . . . . 1 . . . . . . . . . 1 Seal Access 3 | . . . . 1 . . . . . . . . . 1 . . . . . . . . . 1 Unauthorized Hacks 13 | . . . 6 6 . . . . 1 . . . . . . . . . . . . . . . Terminals 12 | . . . 6 6 . . . . . . . . . . . . . . . . . . . . Assimilate 1 | . . . . 1 . . . . . . . . . . . . . . . . . . . . Botnet 1 | . . . 1 . . . . . . . . . . . . . . . . . . . . . Skim 10 | . . . 5 5 . . . . . . . . . . . . . . . . . . . . Fabricators 1 | . . . . . . . . . 1 . . . . . . . . . . . . . . . Liberate 1 | . . . . . . . . . 1 . . . . . . . . . . . . . . . Repair Stations . | . . . . . . . . . . . . . . . . . . . . . . . . . Recycling Units . | . . . . . . . . . . . . . . . . . . . . . . . . . Scanalyzers . | . . . . . . . . . . . . . . . . . . . . . . . . . Garrison Access . | . . . . . . . . . . . . . . . . . . . . . . . . . Data Cores Recovered 1 | . . . 1 . . . . . . . . . . . . . . . . . . . . . Used . | . . . . . . . . . . . . . . . . . . . . . . . . . Hacking Detections 29 | . 1 . 8 8 . . . . 2 7 . . . 2 . . . . 1 . . . . . Full Trace Events 2 | . . . . . . . . . 1 1 . . . . . . . . . . . . . . Feedback Events . | . . . . . . . . . . . . . . . . . . . . . . . . . Feedback Blocked . | . . . . . . . . . . . . . . . . . . . . . . . . . Robot Schematics Acquired . | . . . . . . . . . . . . . . . . . . . . . . . . . Robots Built . | . . . . . . . . . . . . . . . . . . . . . . . . . Authchips . | . . . . . . . . . . . . . . . . . . . . . . . . . Time . | . . . . . . . . . . . . . . . . . . . . . . . . . Total Robot Build Rating . | . . . . . . . . . . . . . . . . . . . . . . . . . Part Schematics Acquired 40 | . . . . . . . . . . . . . 27 9 . . . . . . . 4 . . Parts Built . | . . . . . . . . . . . . . . . . . . . . . . . . . Authchips . | . . . . . . . . . . . . . . . . . . . . . . . . . Time . | . . . . . . . . . . . . . . . . . . . . . . . . . Total Part Build Rating . | . . . . . . . . . . . . . . . . . . . . . . . . . Part Studies Acquired 3 | . . . . . . . . . 3 . . . . . . . . . . . . . . . Parts Repaired 3 | . . . . 1 . . . . . . . . . . . . . . 2 . . . . . Time 95 | . . . . 19 . . . . . . . . . . . . . . 76 . . . . . Parts Recycled . | . . . . . . . . . . . . . . . . . . . . . . . . . Recycled Matter . | . . . . . . . . . . . . . . . . . . . . . . . . . Retrieved Matter . | . . . . . . . . . . . . . . . . . . . . . . . . . Retrieved Components 24 | . 3 . 10 . . . . . 3 . . . . 8 . . . . . . . . . . Parts Scanalyzed . | . . . . . . . . . . . . . . . . . . . . . . . . . Part Schematics Acquired . | . . . . . . . . . . . . . . . . . . . . . . . . . Parts Damaged . | . . . . . . . . . . . . . . . . . . . . . . . . . Bothacking | -11 -10 -10 -8 -7 -7 -7 -7 -6 -6 -6 -6 -6 -6 -5 -5 -5 -5 -4 -4 -4 -4 -4 -3 -3 ------------ Run | Yrd Mat Sub Mat Fac Low Low Zio Pro Fac Ext Cet Arc Hub Fac Upp Upp War Pro Fac Upp Upp Zhi Pro Res Used RIF Installer . | . . . . . . . . . . . . . . . . . . . . . . . . . Robots Hacked . | . . . . . . . . . . . . . . . . . . . . . . . . . Non-combat . | . . . . . . . . . . . . . . . . . . . . . . . . . Combat . | . . . . . . . . . . . . . . . . . . . . . . . . . Robot Hacks Applied . | . . . . . . . . . . . . . . . . . . . . . . . . . Relay Couplers Released . | . . . . . . . . . . . . . . . . . . . . . . . . . Fabnet Peak Effective % . | . . . . . . . . . . . . . . . . . . . . . . . . . Robots Rewired 26 | . . . . . . 2 . . . 17 1 . . . . . 5 1 . . . . . . Allies Hacked 1 | . . . . . . . . . . . . . . 1 . . . . . . . . . . Hacks Repelled . | . . . . . . . . . . . . . . . . . . . . . . . . . Allies | -11 -10 -10 -8 -7 -7 -7 -7 -6 -6 -6 -6 -6 -6 -5 -5 -5 -5 -4 -4 -4 -4 -4 -3 -3 -------- Run | Yrd Mat Sub Mat Fac Low Low Zio Pro Fac Ext Cet Arc Hub Fac Upp Upp War Pro Fac Upp Upp Zhi Pro Res Total Allies 54 | . . . . 1 . 2 4 . 3 30 6 . . . . . 5 1 2 . . . . . Largest Group 25 | . . . . 1 . 2 4 4 4 25 25 19 14 1 . . 5 1 2 . . . . . Highest-Rated Group 1118 | . . . . 10 . 48 158 158 158 839 1118 983 716 62 . . 233 64 206 . . . . . Highest-Rated Ally 159 | . . . . 10 . 32 41 41 41 159 159 159 96 62 . . 64 64 103 . . . . . Zionite Dispatches 4 | . . . . . . . . . 2 1 . . . . . . . . 1 . . . . . Heavy 1 | . . . . . . . . . . . . . . . . . . . 1 . . . . . Recon 1 | . . . . . . . . . 1 . . . . . . . . . . . . . . . Fire 2 | . . . . . . . . . 1 1 . . . . . . . . . . . . . . Total Orders 7 | . . . . . . . . . 2 . . . . . . . . 4 1 . . . . . EXPLORE 4 | . . . . . . . . . . . . . . . . . . 4 . . . . . . RETURN 3 | . . . . . . . . . 2 . . . . . . . . . 1 . . . . . Ally Attacks 641 | . . . . . . 14 . 7 139 214 86 23 102 19 . . 15 3 19 . . . . . Total Damage 17684 | . . . . . . 249 . 721 3029 4799 2343 714 3807 429 . . 493 125 975 . . . . . Kills 113 | . . . . . . 2 . 2 23 31 11 3 21 6 . . 4 1 9 . . . . . Allies Corrupted 6 | . . . . . . . . . . . . . 6 . . . . . . . . . . . Allies Melted 1 | . . . . . . . . . 1 . . . . . . . . . . . . . . . Borg Created 16 | . . . . . . . . . 9 3 2 . 1 1 . . . . . . . . . . Largest Collective 7 | . . . . . . . . . 5 6 7 . 5 1 . . . . . . . . . . Intel | -11 -10 -10 -8 -7 -7 -7 -7 -6 -6 -6 -6 -6 -6 -5 -5 -5 -5 -4 -4 -4 -4 -4 -3 -3 ------- Run | Yrd Mat Sub Mat Fac Low Low Zio Pro Fac Ext Cet Arc Hub Fac Upp Upp War Pro Fac Upp Upp Zhi Pro Res Active Infowar (turns) 26196 | . 52 1453 1877 2206 1508 918 2304 549 1151 1233 . 1830 491 1277 783 591 1560 1943 828 736 585 335 847 1139 Optics 10614 | . . . . . . . . . . . . . . 1269 781 591 1560 1943 828 736 585 335 847 1139 Sensors 6727 | . . . . 2206 1508 159 . . 889 1233 . . . . . . . . . . . . . 732 Terrain 14062 | . 52 1453 1877 2206 1508 918 2304 549 1151 212 . . . 69 670 547 546 . . . . . . . Seismic 2 | . . . . . . . . . . . . . . . . 2 . . . . . . . . Machine Analysis 3346 | . . . . . . . . . . . . 1830 491 1025 . . . . . . . . . . Jamming 1927 | . . . . . . . . . . . . . . 587 114 . . 83 470 146 . . . 527 Robot Analysis Total 5 | . . . 1 . . . . . . . . . . . . . . . . . . 4 . . Derelict Logs Recovered 7 | . . . . . 1 . 1 1 . . . . . . 1 1 . 1 . . 1 . . . Drone Launches 9 | . . . . . . . . . 2 . . . . . . . . 6 1 . . . . . Drone Recoveries 7 | . . . . . . . . . 2 . . . . . . . . 4 1 . . . . . Zionite Intel Received 12 | . . . . . . . . . 2 2 . . 6 1 . . . . 1 . . . . . Branch Access 2 | . . . . . . . . . 1 . . . . . . . . . 1 . . . . . Emergency Access 1 | . . . . . . . . . . . . . 1 . . . . . . . . . . . Guard Positions 1 | . . . . . . . . . . . . . 1 . . . . . . . . . . . Component Schematics 2 | . . . . . . . . . . . . . 2 . . . . . . . . . . . Prototype Schematics 1 | . . . . . . . . . . . . . . 1 . . . . . . . . . . Trap Installations 1 | . . . . . . . . . . 1 . . . . . . . . . . . . . . Active Terminals 1 | . . . . . . . . . 1 . . . . . . . . . . . . . . . Active Garrisons 1 | . . . . . . . . . . . . . 1 . . . . . . . . . . . Depthwide Sectors/0 1 | . . . . . . . . . . . . . 1 . . . . . . . . . . . Depthwide Sectors/-1 1 | . . . . . . . . . . 1 . . . . . . . . . . . . . . Exploration | -11 -10 -10 -8 -7 -7 -7 -7 -6 -6 -6 -6 -6 -6 -5 -5 -5 -5 -4 -4 -4 -4 -4 -3 -3 ------------- Run | Yrd Mat Sub Mat Fac Low Low Zio Pro Fac Ext Cet Arc Hub Fac Upp Upp War Pro Fac Upp Upp Zhi Pro Res Turns Passed 27468 | 57 213 1453 1891 2206 1508 918 2304 554 1199 1572 471 1990 491 1277 800 591 1560 1943 828 736 585 335 847 1139 Spaces Moved 11198 | 33 105 988 668 817 610 345 957 226 623 642 208 161 249 671 387 321 808 451 293 366 273 152 380 464 Core 138 | 13 . . . . . . . . . . . . . . . . . 9 . . . . . 116 Treads 3832 | 20 105 135 578 817 610 345 957 226 . . . . . . . . . . . . . . . 39 Legs 2177 | . . . . . . . . . . . . . . . . . . 404 293 366 273 152 380 309 Wheels 5051 | . . 853 90 . . . . . 623 642 208 161 249 671 387 321 808 38 . . . . . . Hover . | . . . . . . . . . . . . . . . . . . . . . . . . . Flight . | . . . . . . . . . . . . . . . . . . . . . . . . . Fastest Speed 50 | 50 160 115 130 240 240 240 240 240 165 165 165 165 170 140 153 170 170 50 116 196 196 203 203 50 Average Speed 198 | 145 160 134 208 240 240 240 240 240 167 165 165 173 170 161 173 170 170 350 209 196 202 203 203 177 Slowest Speed 2000 | 200 160 160 240 240 240 240 240 240 175 165 165 185 185 170 270 170 187 2000 260 196 203 203 203 410 Overloaded Moves . | . . . . . . . . . . . . . . . . . . . . . . . . . Propulsion Burnouts . | . . . . . . . . . . . . . . . . . . . . . . . . . Robots Hopped 8 | . . . . . . . . . . . 8 . . . . . . . . . . . . . Potential Cave-ins 2 | . . . . . . . . . . . . . . . . . . 2 . . . . . . Cave-ins Triggered 1 | . . . . . . . . . . . . . . . . . 1 . . . . . . . Exploration Rate (%) 52 | 4 11 52 67 25 77 46 89 42 22 81 82 88 44 21 68 60 88 82 9 65 60 57 58 24 Regions Visited 24 Branch Regions 17 Pre-discovered Areas 22 | . . . 1 1 . . . . . 5 . . 10 . . 1 . . . . 1 3 . . Known Exits Taken 21 | . . . 1 1 1 1 1 1 1 1 1 1 1 1 1 1 1 1 1 1 1 1 1 . Unknown Exits Taken 3 | 1 1 1 . . . . . . . . . . . . . . . . . . . . . . Scrap Searched 28 | . . 9 . . 2 1 2 3 . . . . . . 3 2 . 1 . 1 4 . . . Spaces Dug 90 | . . . . . . . . . 2 . 8 7 9 12 . . . 19 7 . . . 10 16 Terrain Destroyed 837 | . . . 17 47 . . . . 2 . 8 7 9 46 34 90 135 295 73 10 . . 39 25 Melee 37 | . . . . . . . . . 2 . 8 7 9 8 . . . . . . . . . 3 Projectile 189 | . . . 9 . . . . . . . . . . 17 33 1 4 40 14 10 . . 39 22 AOE 610 | . . . 8 47 . . . . . . . . . 21 . 89 131 255 59 . . . . . Terrain Rammed . | . . . . . . . . . . . . . . . . . . . . . . . . . Walls Destroyed . | . . . . . . . . . . . . . . . . . . . . . . . . . Machines Disabled . | . . . . . . . . . . . . . . . . . . . . . . . . . Actions | -11 -10 -10 -8 -7 -7 -7 -7 -6 -6 -6 -6 -6 -6 -5 -5 -5 -5 -4 -4 -4 -4 -4 -3 -3 --------- Run | Yrd Mat Sub Mat Fac Low Low Zio Pro Fac Ext Cet Arc Hub Fac Upp Upp War Pro Fac Upp Upp Zhi Pro Res Total 15488 | 39 150 1052 1054 1012 633 391 967 234 756 1122 312 1857 292 778 453 349 964 724 464 371 305 169 413 627 Wait 2823 | . 39 5 256 150 5 29 . 1 85 220 94 1655 12 2 17 . 11 109 88 . 24 . . 21 Move 11165 | 32 104 987 667 816 609 344 956 225 622 641 198 160 248 670 386 320 807 450 292 365 272 151 379 464 Hop 1 | . . . . . . . . . . . 1 . . . . . . . . . . . . . Pick Up 149 | 1 4 11 22 11 3 . 3 1 9 2 2 7 2 12 4 3 10 11 20 . 3 2 . 6 Fast Attach 119 | 6 2 2 9 2 . . 2 2 1 1 . 3 2 17 1 5 14 14 18 . 1 5 . 12 Attach 74 | . . 3 7 1 . 2 . . 5 3 . 4 . 5 3 1 3 21 5 . . . . 11 Detach 25 | . . . . . . . 1 . . 1 . . . 1 . . 1 14 6 . . . . 1 Swap 74 | . . 1 14 3 2 . 1 . 5 5 4 1 2 3 13 6 4 1 5 1 . . . 3 Drop 181 | . 1 5 24 11 3 . 4 3 12 . . 9 4 24 4 6 28 7 8 . 4 6 . 18 Fire 388 | . . 38 54 15 9 12 . 2 . . . . . 22 25 8 18 73 18 5 1 . 32 56 Melee 115 | . . . . . 2 . . . 7 23 10 18 19 21 . . . 2 4 . . 5 . 4 Ram 3 | . . . . . . . . . . 2 . . . . . . . . . . . . . 1 Kick . | . . . . . . . . . . . . . . . . . . . . . . . . . Crush 34 | . . . 1 3 . . . . . . . . . . . . . . . . . . . 30 Escape Stasis 8 | . . . . . . . . . . 8 . . . . . . . . . . . . . . Rewire 300 | . . . . . . 4 . . . 213 1 . . . . . 60 22 . . . . . . Trap 2 | . . . . . . . . . . . . . . . . . . . . . . . 2 . Miscellaneous 27 | . . . . . . . . . 10 3 2 . 3 1 . . 8 . . . . . . . Route ------- -11/Scrapyard -10/Materials -10/Subcaves (discovered 3 exits: *Mat x2 / [*Rec]) -8/Materials -7/Factory (discovered 6 exits: Fac x4 / *Low x2) -7/Lower Caves -7/Lower Caves -7/Zion (discovered 2 exits: Dee / *Pro) -6/Proximity Caves -6/Factory (discovered 6 exits: *Fac x2 / Low x2 / *Ext x2) -6/Extension (discovered 3 exits: *Fac x2 / *Cet) -6/Cetus (discovered 2 exits: *Fac / *Arc) -6/Archives (discovered 3 exits: *Fac / *Hub x2) -6/Hub_04(d) -5/Factory -5/Upper Caves -5/Upper Caves (discovered 2 exits: *Fac / *War) -5/Warlord -4/Proximity Caves -4/Factory (discovered 3 exits: *Res / *Upp x2) -4/Upper Caves -4/Upper Caves (discovered 2 exits: *Res / *Zhi) -4/Zhirov -3/Proximity Caves -3/Research (discovered 2 exits: *Res x2) History --------- Turn | Location | Event 7 | -11/Scrapyard | Discovered new exit (range 16) 58 | -11/Scrapyard | Entered Materials 59 | -10/Materials | Met a group of wandering Federalists 268 | -10/Materials | Discovered new exit (range 3) 271 | -10/Materials | Entered Subcaves 272 | -10/Subcaves | Continued accompanying wandering Federalists (5) 316 | -10/Subcaves | Build established: Mutant 481 | -10/Subcaves | Lost 3 allies 657 | -10/Subcaves | Discovered new exit (range 10) 669 | -10/Subcaves | Discovered new exit (range 11) 715 | -10/Subcaves | Discovered new exit (range 9) 904 | -10/Subcaves | Visited 4L-MR0's lab 920 | -10/Subcaves | Found Prototype Special Melee Weapon 924 | -10/Subcaves | Found Meta Core 990 | -10/Subcaves | Shifting Twisted Machinery released Battle Rifle 1724 | -10/Subcaves | Entered Materials 1724 | -8/Materials | Evolved 4 slots: Utility x2, Weapon x2 2094 | -8/Materials | Discovered new exit (range 6) 2192 | -8/Materials | Build established: Scavenger-Gunner 2694 | -8/Materials | Learned location of 1 exit from Recycling 2734 | -8/Materials | Learned location of 1 exit from Recycling 2765 | -8/Materials | Learned 2 Lower Caves zone layouts 2788 | -8/Materials | Learned location of 1 exit from Extension 2808 | -8/Materials | Learned location of Lower Caves (-6) 2809 | -8/Materials | Learned Factory emergency access door positions 2816 | -8/Materials | Learned location of 2 exits from Factory 2861 | -8/Materials | Learned 4 Factory zone layouts 2957 | -8/Materials | Attached Meta Core, gained temporary slots: Propulsion, Utility, Weapon 3226 | -8/Materials | Build established: Gunner 3613 | -8/Materials | Identified exit to Factory 3615 | -8/Materials | Entered Factory 3615 | -7/Factory | Evolved 2 slots: Utility x1, Weapon x1 3616 | -7/Factory | Identified exit to Lower Caves 3617 | -7/Factory | Identified exit to Factory 3749 | -7/Factory | Repaired Imp. Heat Sink 3913 | -7/Factory | Build established: Assassin 5647 | -7/Factory | Learned 12 Factory zone layouts 5687 | -7/Factory | Learned 4 Extension zone layouts 5719 | -7/Factory | Learned 2 Upper Caves zone layouts 5741 | -7/Factory | Loaded intel: 25 terminal locations 5761 | -7/Factory | Loaded intel: 89 trap records 5766 | -7/Factory | Learned Extension emergency access door positions 5783 | -7/Factory | Learned location of 1 exit from Upper Caves 5821 | -7/Factory | Entered Lower Caves 6520 | -7/Lower Caves | Learned location of 2 exits from Factory 6526 | -7/Lower Caves | Attracted the attention of an 0b10 checkpoint 6990 | -7/Lower Caves | Discovered new exit (range 10) 7326 | -7/Lower Caves | Identified exit to Lower Caves 7329 | -7/Lower Caves | Entered another Lower Caves area 7484 | -7/Lower Caves | Attracted the attention of an 0b10 outpost 7561 | -7/Lower Caves | Destroyed 8 combat bots 7792 | -7/Lower Caves | Build established: Executioner 7966 | -7/Lower Caves | Attracted the attention of an 0b10 checkpoint 8185 | -7/Lower Caves | Discovered new exit (range 11) 8209 | -7/Lower Caves | Identified exit to Zion 8247 | -7/Lower Caves | Entered Zion 8387 | -7/Zion | Discovered new exit (range 13) 8389 | -7/Zion | Found CR-A16's Pointy Stick 8508 | -7/Zion | Given the Hacking Drone Bay 8508 | -7/Zion | Found Prototype Device 8542 | -7/Zion | System corruption cleaned by Quarantine Array 8692 | -7/Zion | Found Prototype Device 9073 | -7/Zion | Learned Factory emergency access door positions 9294 | -7/Zion | Identified exit to Deep Caves 9765 | -7/Zion | Found Prototype Launcher 9765 | -7/Zion | Identified Rocket Array 10098 | -7/Zion | Met Imprinter 10136 | -7/Zion | Imprinted 10139 | -7/Zion | Declared Zion's savior 10547 | -7/Zion | Identified exit to Proximity Caves 10551 | -7/Zion | Entered Proximity Caves 10551 | -6/Proximity Caves | Accompanied by 4 allies 10866 | -6/Proximity Caves | Learned Factory stockpile data 11090 | -6/Proximity Caves | Discovered exit to Factory (range 5) 11105 | -6/Proximity Caves | Entered Factory 11105 | -6/Factory | Accompanied by 4 allies 11105 | -6/Factory | Evolved 2 slots: Power x1, Utility x1 11106 | -6/Factory | Identified exit to Extension 11106 | -6/Factory | Identified exit to Factory 11107 | -6/Factory | Identified exit to Lower Caves 11110 | -6/Factory | Identified 1B-0RG's Assimilator 11177 | -6/Factory | Assimilating Administrator 5a into Collective. 11205 | -6/Factory | Spotted B-75 Beast 11230 | -6/Factory | Assimilating Beast 5a into Collective. 11253 | -6/Factory | Lost 3 allies 11289 | -6/Factory | Identified Hacking Drone Bay 11390 | -6/Factory | Assimilating Technician 5a into Collective. 11432 | -6/Factory | Identified Phasing AFG 11574 | -6/Factory | Assimilating Soldier 5a into Collective. 11577 | -6/Factory | Assimilating Soldier 5b into Collective. 11613 | -6/Factory | Assimilating Fighter 5a into Collective. 11630 | -6/Factory | Assimilating Soldier 5c into Collective. 11634 | -6/Factory | Assimilating Soldier 5d into Collective. 11651 | -6/Factory | Lost 3 allies 11707 | -6/Factory | Retrieved Zion intel report: Branch Access 11711 | -6/Factory | Build established: Assassin 11757 | -6/Factory | Assimilating Soldier 5e into Collective. 12182 | -6/Factory | Garrison activated, responded to threat 12214 | -6/Factory | Retrieved Zion intel report: Active Terminals 12215 | -6/Factory | Zion Fire squad teleported in 12221 | -6/Factory | Discovered exit to Factory (range 7) 12247 | -6/Factory | Zion Recon squad teleported in 12304 | -6/Factory | Entered Extension 12304 | -6/Extension | Accompanied by 7 allies 12360 | -6/Extension | Assimilating Soldier 5f into Collective. 12366 | -6/Extension | Rescued a captive Derelict 12367 | -6/Extension | Rescued a captive Derelict 12548 | -6/Extension | Retrieved Zion intel report: Trap Installations 12560 | -6/Extension | Retrieved Zion intel report: Depthwide Sectors/-5 12561 | -6/Extension | Zion Fire squad teleported in 12620 | -6/Extension | Rescued A7 12796 | -6/Extension | Rescued a captive Derelict 12798 | -6/Extension | Rescued a captive Derelict 12822 | -6/Extension | Rescued a captive Derelict 13032 | -6/Extension | Build established: Commander-Mutant 13075 | -6/Extension | Assimilating Engineer 5a into Collective. 13109 | -6/Extension | Spotted B-75 Beast 13117 | -6/Extension | Allies destroyed B-75 Beast 13127 | -6/Extension | Spotted B-75 Beast 13134 | -6/Extension | Allies destroyed B-75 Beast 13354 | -6/Extension | First assault squad dispatched 13364 | -6/Extension | Rescued a captive Derelict 13381 | -6/Extension | Rescued a captive Derelict 13397 | -6/Extension | Rescued a captive Derelict 13400 | -6/Extension | Rescued a captive Derelict 13493 | -6/Extension | Assimilating GR-6WI(h) into Collective. 13576 | -6/Extension | Terminal network hard line cut 13711 | -6/Extension | Discovered new exit (range 6) 13720 | -6/Extension | Identified exit to Cetus 13876 | -6/Extension | Entered Cetus 13876 | -6/Cetus | Accompanied by 31 allies (A7) 13881 | -6/Cetus | Acquired a Cetus Manufacturing Module code from A7 13897 | -6/Cetus | Spotted Cetus Guard 13897 | -6/Cetus | Spotted Cetus Guard 13908 | -6/Cetus | Spotted Cetus Guard 13913 | -6/Cetus | Allies destroyed Cetus Guard 13913 | -6/Cetus | Spotted Cetus Guard 13922 | -6/Cetus | Allies destroyed Cetus Guard 13925 | -6/Cetus | Allies destroyed Cetus Guard 13931 | -6/Cetus | Allies destroyed Cetus Guard 13937 | -6/Cetus | Assimilating 7Y-6G6(h) into Collective. 13960 | -6/Cetus | Lost 5 allies 13996 | -6/Cetus | Assimilating NQ-8L1(h) into Collective. 14049 | -6/Cetus | Started Cetus Manufacturing Module 14073 | -6/Cetus | Escorted A7 to Cetus Mainframe 14074 | -6/Cetus | Manufactured an Enhanced Grunt 14095 | -6/Cetus | Discovered new exit (range 16) 14099 | -6/Cetus | Manufactured an Enhanced Grunt 14124 | -6/Cetus | Manufactured an Enhanced Grunt 14149 | -6/Cetus | Manufactured an Enhanced Grunt 14152 | -6/Cetus | Spotted Cetus Guard 14156 | -6/Cetus | Spotted Cetus Guard 14156 | -6/Cetus | Spotted Cetus Guard 14158 | -6/Cetus | Spotted Cetus Guard 14171 | -6/Cetus | Discovered exit to Factory (range 16) 14174 | -6/Cetus | Manufactured an Enhanced Grunt 14175 | -6/Cetus | Allies destroyed Cetus Guard 14177 | -6/Cetus | Allies destroyed Cetus Guard 14184 | -6/Cetus | Rewired Cetus Guard 14188 | -6/Cetus | Allies destroyed Cetus Guard 14189 | -6/Cetus | Scared off Revision 17 14216 | -6/Cetus | Lost 3 allies 14254 | -6/Cetus | Identified exit to Archives 14347 | -6/Cetus | Entered Archives 14347 | -6/Archives | Accompanied by 26 allies (A7) 14352 | -6/Archives | Received a hacking code to weaken MAIN.C 14390 | -6/Archives | Discovered new exit (range 18) 14402 | -6/Archives | Lost 4 allies 14468 | -6/Archives | Discovered exit to Factory (range 15) 14518 | -6/Archives | Unable to access archive contents 14525 | -6/Archives | Discovered new exit (range 14) 14535 | -6/Archives | Unable to access archive contents 14618 | -6/Archives | Identified exit to Hub_04(d) 16337 | -6/Archives | Entered Hub_04(d) 16337 | -6/Hub_04(d) | Accompanied by 21 allies 16395 | -6/Hub_04(d) | Retrieved Zion intel report: Emergency Access 16451 | -6/Hub_04(d) | Retrieved Zion intel report: Component Schematics 16475 | -6/Hub_04(d) | Retrieved Zion intel report: Active Garrisons 16633 | -6/Hub_04(d) | Retrieved Zion intel report: Component Schematics 16685 | -6/Hub_04(d) | Retrieved Zion intel report: Depthwide Sectors/-6 16704 | -6/Hub_04(d) | Retrieved Zion intel report: Guard Positions 16773 | -6/Hub_04(d) | Network Hub disabled 16784 | -6/Hub_04(d) | Assimilating Administrator 5b into Collective. 16789 | -6/Hub_04(d) | Spotted Lightning 16793 | -6/Hub_04(d) | Spotted Lightning 16793 | -6/Hub_04(d) | Spotted Lightning 16796 | -6/Hub_04(d) | Spotted Lightning 16796 | -6/Hub_04(d) | Spotted Lightning 16797 | -6/Hub_04(d) | Discovered exit to Factory (range 13) 16808 | -6/Hub_04(d) | Allies destroyed Lightning 16819 | -6/Hub_04(d) | Core integrity fell below 50% 16828 | -6/Hub_04(d) | Entered Factory 16828 | -5/Factory | Accompanied by 1 ally 16828 | -5/Factory | Evolved 2 slots: Utility x1, Weapon x1 16829 | -5/Factory | Identified exit to Upper Caves 16830 | -5/Factory | Assimilating XB-UTP(l) into Collective. 16853 | -5/Factory | Lost 13 allies 17121 | -5/Factory | Build established: Mutant 17454 | -5/Factory | Retrieved Zion intel report: Prototype Schematics 17596 | -5/Factory | Build established: Executioner 18105 | -5/Factory | Entered Upper Caves 18106 | -5/Upper Caves | Identified exit to Upper Caves 18339 | -5/Upper Caves | Build established: Assassin 18717 | -5/Upper Caves | Encountered a Warlord checkpoint 18744 | -5/Upper Caves | Learned Factory emergency access door positions 18905 | -5/Upper Caves | Entered another Upper Caves area 19019 | -5/Upper Caves | Discovered new exit (range 13) 19040 | -5/Upper Caves | Identified exit to Factory 19365 | -5/Upper Caves | Discovered new exit (range 13) 19389 | -5/Upper Caves | Identified exit to Warlord 19496 | -5/Upper Caves | Entered Warlord 19558 | -5/Warlord | System corruption cleaned by Quarantine Array 19710 | -5/Warlord | Found Prototype Special Weapon 19710 | -5/Warlord | Identified RU-N14's Throwing Claymores v3 19715 | -5/Warlord | Found RU-N14's Throwing Claymores v3 19719 | -5/Warlord | Found RU-N14's Throwing Claymores v3 19722 | -5/Warlord | Found RU-N14's Throwing Claymores v3 20039 | -5/Warlord | Found Prototype Reactor 20046 | -5/Warlord | Found Prototype Processor 20046 | -5/Warlord | Identified Exp. Targeting Computer 20055 | -5/Warlord | Found Prototype Device 20055 | -5/Warlord | Identified System Purifier 20062 | -5/Warlord | Found Prototype Hackware 20067 | -5/Warlord | Found Prototype Processor 20067 | -5/Warlord | Identified Spectral Analyzer 20346 | -5/Warlord | Build established: Executioner 20353 | -5/Warlord | Learned Research terminal intel 20353 | -5/Warlord | Learned Research security intel 20354 | -5/Warlord | Learned 4 Research zone layouts 20358 | -5/Warlord | Learned Testing trap positions 20473 | -5/Warlord | Warlord's base attacked by MAIN.C 20589 | -5/Warlord | Rebuked by Warlord 20690 | -5/Warlord | Met EX-DEC 20693 | -5/Warlord | Found Prototype Energy Cannon 20703 | -5/Warlord | Found Prototype Launcher 20781 | -5/Warlord | Build established: Commander-Executioner 20823 | -5/Warlord | Warlord forces counterattacked 20864 | -5/Warlord | Spotted Executioner 20872 | -5/Warlord | Destroyed Executioner 20915 | -5/Warlord | Lost 8 allies 20920 | -5/Warlord | Destroyed 13 combat bots 20961 | -5/Warlord | Discovered new exit (range 22) 20973 | -5/Warlord | Spotted Executioner 20995 | -5/Warlord | Crushed by falling debris 21009 | -5/Warlord | Destroyed Executioner 21030 | -5/Warlord | Destroyed 10 combat bots 21035 | -5/Warlord | Lost 17 allies 21039 | -5/Warlord | Lost 3 parts (2u1w) 21045 | -5/Warlord | Identified exit to Proximity Caves 21056 | -5/Warlord | Entered Proximity Caves 21056 | -4/Proximity Caves | Accompanied by 1 ally 21131 | -4/Proximity Caves | Attracted the attention of an 0b10 outpost 21143 | -4/Proximity Caves | System corruption reached 10% 21174 | -4/Proximity Caves | Core integrity fell below 50% 21182 | -4/Proximity Caves | Identified Vortex Catalyst Activator 21185 | -4/Proximity Caves | Identified BFG-9k Vortex Edition 21190 | -4/Proximity Caves | Identified Vortex Chain Reactor 21208 | -4/Proximity Caves | Lost 12 parts (2p2n4u4w) 21273 | -4/Proximity Caves | Core integrity fell below 20% 21306 | -4/Proximity Caves | Lost 3 parts (3u) 21574 | -4/Proximity Caves | Build established: Executioner 22107 | -4/Proximity Caves | Build established: Mutant 22624 | -4/Proximity Caves | Learned 4 Research zone layouts 22959 | -4/Proximity Caves | Discovered exit to Factory (range 7) 22967 | -4/Proximity Caves | Attracted the attention of an 0b10 checkpoint 22999 | -4/Proximity Caves | Entered Factory 22999 | -4/Factory | Evolved 2 slots: Propulsion x1, Utility x1 23119 | -4/Factory | Zion Heavy squad teleported in 23142 | -4/Factory | Discovered new exit (range 10) 23398 | -4/Factory | Retrieved Zion intel report: Branch Access 23398 | -4/Factory | Identified exit to Upper Caves 23444 | -4/Factory | Repaired Huge Storage Unit 23544 | -4/Factory | Repaired Tactical Coordination Suite 23622 | -4/Factory | Build established: Messiah-Executioner 23707 | -4/Factory | Found Prototype Protection 23772 | -4/Factory | Identified exit to Research 23827 | -4/Factory | Entered Upper Caves 23854 | -4/Upper Caves | Encountered a Warlord checkpoint 23973 | -4/Upper Caves | Identified Zio. Weapon Casing 24408 | -4/Upper Caves | Discovered new exit (range 14) 24442 | -4/Upper Caves | Identified exit to Upper Caves 24563 | -4/Upper Caves | Entered another Upper Caves area 24577 | -4/Upper Caves | Attracted the attention of an 0b10 checkpoint 24676 | -4/Upper Caves | Discovered exit to Research (range 20) 24716 | -4/Upper Caves | Learned location of Testing (-3) 25105 | -4/Upper Caves | Discovered new exit (range 22) 25144 | -4/Upper Caves | Identified exit to Zhirov 25148 | -4/Upper Caves | Entered Zhirov 25148 | -4/Zhirov | Discovered new exit (range 3) 25185 | -4/Zhirov | Met Zhirov 25222 | -4/Zhirov | Learned location of Quarantine (-2) 25222 | -4/Zhirov | Learned location of Command (-1) 25242 | -4/Zhirov | Zhirov requested help retrieving the SGEMP Prototype 25273 | -4/Zhirov | Found Alien Artifact 25273 | -4/Zhirov | Identified Integrated Dissipator 25273 | -4/Zhirov | Installed Integrated Dissipator, increased core heat dissipation (+20) 25480 | -4/Zhirov | Identified exit to Proximity Caves 25483 | -4/Zhirov | Entered Proximity Caves 26253 | -3/Proximity Caves | Discovered exit to Research (range 8) 26330 | -3/Proximity Caves | Entered Research 26330 | -3/Research | Evolved 2 slots: Utility x2 26331 | -3/Research | Identified exit to Research 26333 | -3/Research | Loaded intel: 19 terminal locations 26597 | -3/Research | Discovered exit to Research (range 23) 26763 | -3/Research | Lost 5 parts (2u3w) 26794 | -3/Research | Build established: Messiah-Assassin 26866 | -3/Research | Spotted B-86 Titan 27075 | -3/Research | Lost 4 parts (1u3w) 27288 | -3/Research | Lost 9 parts (2p1n2u4w) 27312 | -3/Research | Spotted B-86 Titan 27365 | -3/Research | System corruption reached 10% 27370 | -3/Research | Core integrity fell below 50% 27392 | -3/Research | Lost 6 parts (1p2n2u1w) 27418 | -3/Research | Spotted B-86 Titan 27419 | -3/Research | Core integrity fell below 20% 27469 | -3/Research | Destroyed by S-43 Plague with Heavy Machine Gun Last Messages --------------- 27384_ Acquired 25 matter. 27403_ Penetrated by Slug. 27405_ System corrupted: Matter fused (-9). 27405_ Imp. Heavy Treads destroyed. 27409_ Dropped Energy Well. 27409_ Discarded Tactical Coordination Suite. 27409_ Slug penetrates Wall. 27410_ W-44 Eye sends out distress signal. 27413_ Core Analyzer destroyed. 27413_ Penetrated by Slug. 27413_ Slug penetrates Wall. 27421_ Penetrated by Slug. 27422_ System corrupted: Matter fused (-10). 27441_ Acquired Prototype Storage. 27441_ Identified Exp. Matter Compressor. 27447_ T-07 Excavator destroyed. 27447_ K-01 Serf collects debris. 27460_ W-44 Eye sends out distress signal. 27462_ Acquired 66 matter. 27468_ Slammed into U-05 Engineer. Map ----- +----------------------------------------------------+ | | | | | | | | | | | | | ?????????????????????????????????????????????????? | | ?????????????????????????????????????????????????? | | ?????????????????????????????????????????????????? | | ?????????????????????????????????????????????????? | | ?????????????????????????????????????????????????? | | ?????????????????????????????????????????????????? | | ?????????????????????????????T???????????????????? | | ?????????????????????????????????????????????????? | | ?????????????????????????????????????????????????? | | ?????????????????????????????????????????????????? | | ?????????????????????????????????????????????????? | | ???????????????????+?###########?????????????????? | | ??????????????????? ? # #?????????????????? | | ??????????????????? # #?????????????????? | | ???????????????#??? # ! #?????????????????? | | ???????????????# ?? # #?????????????????? | | ???????????????# ! # #????#????????????? | | ???????????????# ?? ???? +????????????? | | ???????????????# R ####/###### #????????????? | | ???????????????# u@ s #????????????? | | ???????????????# = ####s s #????????????? | | ???????????????#######/#???# ##/#?????????? | | ?????????????????????# #???# #?????????? | | ?????????????????????# #???### #?????????? | | ?????????????????????# ####### #?????????? | | ?????????????????????# ! #?????????? | | ???????????########### !! +?????????? | | ???????????# # ##+#?????????? | | ???????????# + ### #????????????? | | ???????????# # #??+#????????????? | | ???????????# # """ #????????????????? | | ???????????########+## """ #????????????????? | | ?????????????#! # "" #????????????????? | | ?????????????# # F"" #????????????????? | | ?????????????# + """ +????????????????? | | ?????????????# # #????????????????? | | ?????????????# # ] #????????????????? | | ?????????????# ?# +????????????????? | | ?????????????# ?# #######????????????????? | | ?????????????# ??# #??????????????????????? | | ?????####+##?# ??# #??????????? ?????????? | | ?????# ##???# #?????????? ?????????? | | ##### ###### #????????? ????????? | | ######### ????????? | +----------------------------------------------------+ Best States ------------- Heat Dissipation 147 Energy Generation 55 Energy Capacity 700 Matter Stores 541 Matter Capacity 800 Sight Range 24 Robot Scan Range 16 Terrain Scan Range 16 Terrain Scan Density 210 Jamming Range 14 Armor Coverage 600 Resistance: TH 25 Weapon Shielding 100 Evasion (%) 50 Targeting Accuracy 12 Core Analysis 6 Armor Integrity Analysis 40 Recoil Reduction 3 Item Schematics ----------------- Magnetic Acceleration Cannon | -6/Hub_04(d) | Z-intel IFF Parser | -6/Hub_04(d) | Z-intel Gauss Rifle | -6/Hub_04(d) | Z-intel Imp. Trap Scanner | -6/Hub_04(d) | Z-intel Arm. Treads | -6/Hub_04(d) | Z-intel Proton Cannon | -6/Hub_04(d) | Z-intel Hrd. Medium Armor Plating | -6/Hub_04(d) | Z-intel Imp. EM Pulse Cannon | -6/Hub_04(d) | Z-intel Adv. Terrain Scanner | -6/Hub_04(d) | Z-intel Gravmag System | -6/Hub_04(d) | Z-intel Carbon-fiber Leg | -6/Hub_04(d) | Z-intel Hvy. Machine Gun | -6/Hub_04(d) | Z-intel Greatsword | -6/Hub_04(d) | Z-intel Transmission Jammer | -6/Hub_04(d) | Z-intel Adv. Signal Interpreter | -6/Hub_04(d) | Z-intel Arc Projector | -6/Hub_04(d) | Z-intel Gravmag Array | -6/Hub_04(d) | Z-intel Com. Wheel | -6/Hub_04(d) | Z-intel Imp. Medium Treads | -6/Hub_04(d) | Z-intel System Restoration Module | -6/Hub_04(d) | Z-intel Triangulator | -6/Hub_04(d) | Z-intel EM Disruption Field | -6/Hub_04(d) | Z-intel Plasma Cannon | -6/Hub_04(d) | Z-intel Hvy. Armor Plating | -6/Hub_04(d) | Z-intel Thermal Shield | -6/Hub_04(d) | Z-intel Targeting Computer | -6/Hub_04(d) | Z-intel Core Shielding | -6/Hub_04(d) | Z-intel Lgt. Neutrino Core | -5/Factory | Z-intel Enh. Flexi-carbon Leg | -5/Factory | Z-intel Enh. Armored Leg | -5/Factory | Z-intel Imp. Lightning Gun | -5/Factory | Z-intel Cld. Nuclear Pulse Thruster | -5/Factory | Z-intel Prc. Energy Filter | -5/Factory | Z-intel Adv. EM Disruption Field | -5/Factory | Z-intel Imp. Spread Laser | -5/Factory | Z-intel Hvy. Gatling Laser | -5/Factory | Z-intel Assault Drone Bay | -4/Zhirov | Free Exp. Heat Sink | -4/Zhirov | Free Exp. Optical Array | -4/Zhirov | Free Imp. Arc Thrower | -4/Zhirov | Free Robot Schematics ------------------ None Fabricated ------------ Nothing Repaired ---------- Imp. Heat Sink | 42% | -7/Factory Huge Storage Unit | 14% | -4/Factory Tactical Coordination Suite | 18% | -4/Factory Studied --------- Arm. Wheel | -6/Factory | Hacked Arm. Huge Wheel | -6/Factory | Hacked Proton Cannon | -6/Factory | Hacked Alien Tech Used ----------------- Integrated Dissipator Achievements -------------- The Slayer Has Control Challenges ------------ None Game ------ Seed ImpactNavigationChainsaw Manual? 0 Play Time 02:41:14 Cumulative 285.2 hours Start 2026.03.07 @ 17:15:04 End 2026.03.07 @ 20:59:53 Sessions 3 Manual Loads 0 Difficulty Rogue Special Mode None Game No. 218 Rogue 218 Adventurer 0 Explorer 0 Win Type - Total 12 Types 8/0/3/1/0/0/0/0/0/0 Lore% 85 Gallery% 71 Achievement% 58 Wizard Run 0 Options --------- Layout 1 ASCII 0 Keyboard 0 Movement Numpad Keybinds 0 Fullscreen 1 Font 24/Smallcaps Map View 50x35 Zoom Use 0% Tactical HUD 1 Map Filters NONE Filters NONE Steam 1 RUN: 033a18fb-359d-41f9-8a06-82ee0fa16303